[Event "American Cup Blitz 2024"]
[Site "Saint Louis"]
[Date "2024.03.21"]
[Round "1.7"]
[White "Zatonskih, Anna"]
[Black "Shankland, Sam"]
[Result "0-1"]
[ECO "A47"]
[WhiteElo "2348"]
[BlackElo "2674"]
[Annotator "TA"]
[PlyCount "50"]
[EventDate "2024.03.21"]
[EventType "swiss"]
[EventCountry "USA"]
[SourceTitle "playchess.com"]
[Source "ChessBase"]
[SourceQuality "1"]
[TimeControl "180+2"]

{[%evp 15,50,0,0,-10,8,-14,-16,-46,-49,-46,-29,-28,-20,-53,-50,-53,-71,-99,-107,-110,-68,-85,-87,-71,-66,-92,-127,-122,-130,-137,-133,-107,-116,-148,-83,-650,-647]} 1. d4 {[%emt 0:00:01]} Nf6 {[%emt 0:00:01]} 2. Nf3 {[%emt 0:00:01]} b6 {[%emt 0:00:01]} 3. g3 {[%emt 0:00:13]} Bb7 {[%emt 0:00:01]} 4. Bg2 {[%emt 0:00:01]} c5 {[%emt 0:00:02]} 5. dxc5 {[%emt 0:00:21]} bxc5 {[%emt 0:00:02]} 6. c4 {[%emt 0:00:00]} g6 {[%emt 0:00:03]} 7. O-O {[%emt 0:00:19]} Bg7 {[%emt 0:00:01]} 8. Nc3 {[%emt 0:00:01]} O-O {[%emt 0:00:03]} 9. Re1 {[%emt 0:00:45]} d6 {[%emt 0:00:20]} 10. Qc2 {[%emt 0:00:58]} Nc6 {[%emt 0:00:15]} 11. a3 {[%emt 0:00:01] The position is equal.} Rb8 {[%emt 0:00:05]} 12. Rb1 {[%emt 0:00:08]} Qd7 {[%emt 0:00:05]} 13. b4 {[%emt 0:00:04]} Nd4 {[%emt 0:00:24]} 14. Nxd4 {[%emt 0:00:01]} Bxg2 {[%emt 0:00:01]} 15. Kxg2 {[%emt 0:00:14] Black must now prevent bxc5.} cxd4 {[%emt 0:00:02]} 16. Nd1 {[%emt 0:00:17]} Rfc8 {[%emt 0:00:08]} 17. Kg1 {[%emt 0:00:02]} Ng4 {[%emt 0:00:09]} 18. Nb2 {[%emt 0:00:03]} h5 {[%emt 0:00:09] Black has more active pieces. The white rooks are passive.} 19. Bf4 {[%emt 0:00:03]} e5 {[%emt 0:00:10]} (19... a5 $5 20. bxa5 Qa7 $17) 20. Bd2 {[%emt 0:00:03] [#]} h4 $1 {[%emt 0:00:06]} 21. Qe4 {[%emt 0:00:04] [#]} (21. e4 dxe3) 21... hxg3 $1 {[%emt 0:00:19]} 22. hxg3 {[%emt 0:00:00]} Nf6 $36 {[%emt 0:00:02][%mdl 2048] Black is on the roll.} 23. Qg2 {[%emt 0:00:02]} e4 {[%emt 0:00:03]} 24. Bg5 {[%emt 0:00:00]} Qf5 {[%emt 0:00:04]} (24... Re8 $142 25. Rf1 Rbc8) 25. Red1 $2 {[%emt 0:00:02][%mdl 8192]} Qxg5 {[%emt 0:00:02] Weighted Error Value: White=0.50/Black=0.08 (flawless) .  Loses game:     	White=1     	---        Mistake:       	---       	Black=1      Inaccurate:     	White=4     	Black=1      OK:         	White=3     	Black=8      Best:        	White=1     	Black=1      Strong:       	---       	Black=1} 0-1

[Event "American Cup Blitz 2024"]
[Site "Saint Louis"]
[Date "2024.03.21"]
[Round "1.8"]
[White "Oparin, Grigoriy"]
[Black "Paikidze, Nazi"]
[Result "1-0"]
[ECO "D00"]
[WhiteElo "2671"]
[BlackElo "2319"]
[Annotator "TA"]
[PlyCount "49"]
[EventDate "2024.03.21"]
[EventType "swiss"]
[EventCountry "USA"]
[SourceTitle "playchess.com"]
[Source "ChessBase"]
[SourceQuality "1"]
[TimeControl "180+2"]

{[%evp 9,49,26,26,27,25,9,25,32,31,-2,47,43,133,152,413,387,383,408,397,159,407,398,374,372,910,864,937,933,936,935,972,963,1610,960,1320,1210,1945,1639,1907,1766,1643,1528]} 1. d4 {[%emt 0:00:01]} Nf6 {[%emt 0:00:00]} 2. Nc3 {[%emt 0:00:02]} d5 {[%emt 0:00:01]} 3. Bf4 {[%emt 0:00:01]} a6 {[%emt 0:00:02]} 4. e3 {[%emt 0:00:01]} g6 {[%emt 0:00:01]} 5. h4 {[%emt 0:00:05]} h5 {[%emt 0:00:22]} 6. Nf3 {[%emt 0:00:03]} Bg7 {[%emt 0:00:00]} 7. Ne5 {[%emt 0:00:12]} Bf5 {[%emt 0:00:15]} 8. f3 {[%emt 0:00:09][%cal Bf2f3,Bf3g4,Bg4g5][%mdl 32] White has an edge.} Nbd7 {[%emt 0:00:29]} 9. Qe2 {[%emt 0:00:02]} Nb6 {[%emt 0:00:12]} (9... c5 $11 {is more appropriate.}) 10. O-O-O $14 {[%emt 0:00:08]} O-O {[%emt 0:00:47]} (10... Rc8 $14) 11. g4 $16 {[%emt 0:00:07] White is more active.} hxg4 {[%emt 0:00:01] [#]} (11... Bd7 $16 {keeps fighting.} 12. Bh3 Be6) 12. fxg4 $18 {[%emt 0:00:01]} Be4 {[%emt 0:00:01]} 13. Nxe4 {[%emt 0:00:03]} Nxe4 {[%emt 0:00:11]} 14. Bg2 {[%emt 0:00:02]} (14. g5 $18) 14... Nd7 $2 {[%emt 0:00:25] This costs Black the game.} (14... Qe8 $16 15. h5 gxh5 16. Bxe4 (16. gxh5 Kh8 $18) (16. Rxh5 f6 $18) 16... dxe4) 15. g5 {[%emt 0:00:14]} Nxe5 {[%emt 0:00:05]} 16. dxe5 {[%emt 0:00:02]} Nc5 {[%emt 0:00:06] [#]} (16... Qc8 17. Rxd5 c6) 17. Rxd5 {[%emt 0:00:06] White is clearly winning.} Qc8 {[%emt 0:00:11]} 18. Rxc5 {[%emt 0:00:02]} Qe6 19. Kb1 {[%emt 0:00:08]} Rad8 {[%emt 0:00:01]} 20. a3 {[%emt 0:00:07]} c6 {[%emt 0:00:02]} 21. h5 {[%emt 0:00:03]} Qf5 {[%emt 0:00:05]} 22. hxg6 {[%emt 0:00:05]} fxg6 {[%emt 0:00:04]} 23. Bh3 {[%emt 0:00:02]} Qf7 {[%emt 0:00:06]} 24. e6 {[%emt 0:00:05]} Qe8 {[%emt 0:00:04]} 25. Qh2 {[%emt 0:00:02] Weighted Error Value: White=0.37/Black=0.85.  Loses game:     	---       	Black=2      Missed win:     	White=1     	---        Mistake:       	---       	Black=3      Inaccurate:     	White=1     	---        OK:         	White=3     	Black=4      Best:        	White=1     	---} 1-0

[Event "American Cup Blitz 2024"]
[Site "Saint Louis"]
[Date "2024.03.21"]
[Round "1.9"]
[White "Marjanovic, Annamaria"]
[Black "Naroditsky, Daniel"]
[Result "0-1"]
[ECO "A24"]
[WhiteElo "2302"]
[BlackElo "2619"]
[Annotator "TA"]
[PlyCount "68"]
[EventDate "2024.03.21"]
[EventType "swiss"]
[EventCountry "USA"]
[SourceTitle "playchess.com"]
[Source "ChessBase"]
[SourceQuality "1"]
[TimeControl "180+2"]

{[%evp 22,68,-16,-20,-22,-53,-45,-72,-62,-61,-37,-35,-36,-80,-78,-93,-84,-84,-52,-93,-37,-49,-47,-76,-51,-259,-186,-205,-188,-187,-77,-102,-93,-93,-14,-214,-159,-224,-91,-105,-98,-88,-63,-144,-144,-372,-385,-1960,-1795]} 1. c4 {[%emt 0:00:03]} g6 {[%emt 0:00:01]} 2. g3 {[%emt 0:00:02]} Bg7 {[%emt 0:00:02]} 3. Bg2 {[%emt 0:00:02]} Nf6 {[%emt 0:00:03]} 4. Nc3 {[%emt 0:00:02]} d6 {[%emt 0:00:02]} 5. d3 {[%emt 0:00:03]} O-O {[%emt 0:00:04]} 6. Rb1 {[%emt 0:00:03]} e5 {[%emt 0:00:12]} 7. Nf3 {[%emt 0:00:04]} Re8 {[%emt 0:00:02]} 8. O-O {[%emt 0:00:05]} c6 {[%emt 0:00:01]} 9. Bg5 {[%emt 0:00:39]} h6 {[%emt 0:00:02]} 10. Bxf6 {[%emt 0:00:13]} Bxf6 {[%emt 0:00:02]} 11. Nd2 {[%emt 0:00:09]} a5 {[%emt 0:00:20]} 12. a3 {[%emt 0:00:04][%cal Ba2a3,Ba3b4,Bb4b5][%mdl 32]} Be6 {[%emt 0:00:01]} 13. e4 {[%emt 0:00:28]} Nd7 {[%emt 0:00:11]} 14. b4 {[%emt 0:00:10]} axb4 {[%emt 0:00:02] Schwarz steht besser.} 15. axb4 {[%emt 0:00:01]} Bg7 {[%emt 0:00:02]} 16. Qc2 {[%emt 0:00:14]} h5 {[%emt 0:00:05]} 17. b5 {[%emt 0:00:14]} h4 {[%emt 0:00:08]} 18. Ra1 {[%emt 0:00:15]} Rxa1 {[%emt 0:00:17]} 19. Rxa1 {[%emt 0:00:02]} Bh6 {[%emt 0:00:18]} 20. Nf1 {[%emt 0:00:02]} Qb6 {[%emt 0:00:12]} (20... Kg7 $17 21. Nd2 Nc5) 21. bxc6 {[%emt 0:00:14]} bxc6 {[%emt 0:00:04]} 22. Rb1 {[%emt 0:00:02] Weiss hat schwache schwarze Felder} Qa7 {[%emt 0:00:04]} 23. Qa4 $2 {[%emt 0:00:05]} ({Günstiger ist} 23. gxh4 $15 Nf6 24. Bf3) 23... Qd4 {[%emt 0:00:02]} 24. Qc2 {[%emt 0:00:03]} Nc5 {[%emt 0:00:14]} 25. Rd1 {[%emt 0:00:05] [#] Zielt auf Ne2 ab.} Bg4 {[%emt 0:00:16]} (25... Rb8 $19 {...Bg4 ist eine echte Drohung.} 26. gxh4 Bg4) 26. Ne2 $17 {[%emt 0:00:05]} Bxe2 {[%emt 0:00:01]} 27. Qxe2 {[%emt 0:00:01]} Rb8 {[%emt 0:00:02]} ({Besser ist} 27... hxg3 $17 28. Nxg3 Bf4) 28. Ne3 $2 {[%emt 0:00:05]} (28. gxh4 $11 {und Weiss steht sicher.} Bf4 29. h5) 28... Rb2 {[%emt 0:00:03]} 29. Rd2 {[%emt 0:00:09] [#]} (29. Qf3 $17) 29... Rb1+ {[%emt 0:00:17]} (29... Rxd2 $1 $19 {und Schwarz behält klar die Oberhand.} 30. Qxd2 hxg3 (30... Nxd3 $2 31. gxh4 Bf4 32. Bf1 $19) (30... Qxd3 31. Qxd3 Nxd3 32. gxh4 $17) 31. hxg3 Nxd3) 30. Bf1 {[%emt 0:00:04]} hxg3 {[%emt 0:00:03]} ({Doch nicht} 30... Bxe3 31. fxe3 Qc3 32. gxh4 $11) 31. hxg3 {[%emt 0:00:01]} Nb3 {[%emt 0:00:04] Schwarz hat aktiveres Spiel.} 32. Rd1 {[%emt 0:00:03]} ({Vorzuziehen ist} 32. Ra2 $1 $15 Bxe3 33. Qxe3) 32... Rb2 {[%emt 0:00:02]} 33. Qf3 {[%emt 0:00:02]} (33. Qe1 $17) 33... Nd2 $19 {[%emt 0:00:11]} 34. Qf6 {[%emt 0:00:04]} (34. Rxd2 Rxd2 35. Ng4) 34... Bxe3 {[%emt 0:00:07] Gewichteter Fehlerwert: Weiß=0.86/Schwarz=0.37.  Verlustzug:     	Weiß=3     	---        Fehler:       	Weiß=3     	Schwarz=4     Ungenau:       	Weiß=5     	Schwarz=1     OK:         	Weiß=3     	Schwarz=6     Bester:       	Weiß=1     	Schwarz=2} 0-1

[Event "American Cup Blitz 2024"]
[Site "Saint Louis"]
[Date "2024.03.21"]
[Round "1.10"]
[White "Rosen, Eric"]
[Black "Sevian, Samuel"]
[Result "0-1"]
[ECO "D02"]
[WhiteElo "2361"]
[BlackElo "2697"]
[Annotator "TA"]
[PlyCount "122"]
[EventDate "2024.03.21"]
[EventType "swiss"]
[EventCountry "USA"]
[SourceTitle "playchess.com"]
[Source "ChessBase"]
[SourceQuality "1"]
[TimeControl "180+2"]

{[%evp 13,122,-2,10,-2,5,0,-3,0,0,-7,-7,0,0,0,0,0,0,-27,0,-8,37,44,100,-26,-24,-32,-20,-44,-45,-59,-53,-60,-35,-43,-43,-43,-39,-38,-29,-40,-32,-52,-37,-35,-35,-59,-33,-118,-13,-16,-19,-32,-28,-32,-25,-37,0,-77,-77,-77,-77,-69,-68,-72,-65,-102,-93,-122,-98,-117,-99,-151,-151,-156,-144,-595,-622,-505,-497,-1088,-977,-1076,-1023,-1043,-1011,-924,-965,-1337,-1347,-5485,-6087,-3727,-2012,-5255,-4448,-2612,-2414,-2495,-2364,-2798,-2557,-2693,-2693,-2527,-1965,-1958,-1778,-29970,-29978,-29986,-8329]} 1. d4 {[%emt 0:00:01]} Nf6 {[%emt 0:00:01]} 2. Bf4 {[%emt 0:00:01]} d5 {[%emt 0:00:04]} 3. e3 {[%emt 0:00:01]} e6 {[%emt 0:00:03]} 4. Nf3 {[%emt 0:00:01]} c5 {[%emt 0:00:01]} 5. Nbd2 {[%emt 0:00:02]} Nc6 {[%emt 0:00:02]} 6. c3 {[%emt 0:00:01]} Bd6 {[%emt 0:00:02]} 7. Bg3 {[%emt 0:00:04]} O-O {[%emt 0:00:03]} 8. Bb5 {[%emt 0:00:01]} Ne7 {[%emt 0:00:02]} 9. Bd3 {[%emt 0:00:01][%cal Bb5d3,Bd3c2,Bc2e4][%mdl 32]} c4 {[%emt 0:00:01]} 10. Bc2 {[%emt 0:00:01] Die Stellung ist ausgeglichen.} b5 {[%emt 0:00:01]} 11. e4 {[%emt 0:00:07]} dxe4 {[%emt 0:00:01]} 12. Nxe4 {[%emt 0:00:01]} Nxe4 {[%emt 0:00:02]} 13. Bxe4 {[%emt 0:00:01]} Rb8 {[%emt 0:00:01]} 14. Qe2 {[%emt 0:00:36]} Bb7 {[%emt 0:00:16]} 15. Ne5 {[%emt 0:00:11]} Nd5 {[%emt 0:00:38]} 16. O-O {[%emt 0:00:16]} f5 {[%emt 0:00:32]} 17. Bxd5 {[%emt 0:00:07]} Bxd5 {[%emt 0:00:01]} (17... exd5 $14 18. Bf4 Ba8) 18. f3 {[%emt 0:00:01]} (18. Nc6 $1 $16 {[%cal Rc6d8]} Qg5 19. f4 (19. Bxd6 $2 Qxg2#) (19. Nxb8 Rxb8 20. f4 Qe7 $11)) 18... f4 $11 {[%emt 0:00:03]} 19. Bf2 {[%emt 0:00:01]} Rf5 {[%emt 0:00:03]} 20. Rfe1 {[%emt 0:00:13]} Qc7 {[%emt 0:00:04]} 21. Kh1 {[%emt 0:00:17]} a5 {[%emt 0:00:04]} 22. Rac1 {[%emt 0:00:05]} Rh5 {[%emt 0:00:11]} 23. Qd2 {[%emt 0:00:17]} Rf8 {[%emt 0:00:08]} 24. Re2 {[%emt 0:00:22]} Qe7 {[%emt 0:00:08]} 25. Rce1 {[%emt 0:00:05]} Qg5 {[%emt 0:00:16]} 26. Ng4 {[%emt 0:00:14]} Qf5 {[%emt 0:00:01]} 27. Qc2 {[%emt 0:00:14]} Qf7 {[%emt 0:00:15]} 28. Bg1 {[%emt 0:00:00]} Qb7 {[%emt 0:00:05]} 29. Rf1 {[%emt 0:00:11]} Rff5 {[%emt 0:00:02]} 30. h3 {[%emt 0:00:04] [#]} (30. Qd1 $15) 30... Rfg5 {[%emt 0:00:02]} ({Vorzuziehen ist} 30... Rxh3+ $1 $17 31. gxh3 Bxf3+ 32. Rg2 Bxg2+ 33. Qxg2 f3) 31. Bh2 {[%emt 0:00:02]} a4 {[%emt 0:00:08]} 32. Qd2 {[%emt 0:00:01]} Rf5 {[%emt 0:00:04]} 33. Qe1 {[%emt 0:00:04]} Qf7 {[%emt 0:00:03]} 34. a3 {[%emt 0:00:02]} Rhg5 {[%emt 0:00:02]} 35. Qf2 {[%emt 0:00:01]} (35. Ne3 $11 {hält das Gleichgewicht.}) 35... h5 $17 {[%emt 0:00:05]} 36. Ne5 {[%emt 0:00:02] Weiss ist schwach auf den weissen Feldern} Bxe5 {[%emt 0:00:01]} 37. dxe5 {[%emt 0:00:01]} Rxe5 {[%emt 0:00:04]} 38. Rfe1 {[%emt 0:00:01]} Rxe2 {[%emt 0:00:05]} 39. Qxe2 {[%emt 0:00:00]} e5 {[%emt 0:00:04] Schwarz steht aktiver.} 40. Bg1 {[%emt 0:00:06]} Rf5 {[%emt 0:00:11]} 41. Qd2 {[%emt 0:00:03]} Kh7 {[%emt 0:00:02]} 42. Qc2 {[%emt 0:00:02]} (42. Bc5 $142) 42... Qg6 {[%emt 0:00:03][%cal Oe5e4]} 43. Qd2 {[%emt 0:00:02]} Bc6 {[%emt 0:00:03][%cal Oe5e4]} 44. Re2 $2 {[%emt 0:00:06][%mdl 8192] Verliert die Partie.} (44. Bh2 $17) 44... Rg5 $19 {[%emt 0:00:02][%cal Oc6f3]} 45. Qc2 {[%emt 0:00:14] [#]} e4 $1 {[%emt 0:00:01]} 46. Rf2 {[%emt 0:00:06]} (46. h4 $142 Rg3 47. Rd2) 46... e3 {[%emt 0:00:03]} 47. Qxg6+ {[%emt 0:00:01]} Kxg6 {[%emt 0:00:08][%mdl 4096] Endspiel. KRB-KRB} 48. Rf1 {[%emt 0:00:01]} Rd5 {[%emt 0:00:04]} 49. Re1 {[%emt 0:00:04]} h4 {[%emt 0:00:02]} 50. Bh2 {[%emt 0:00:01]} Kf5 {[%emt 0:00:01]} 51. Re2 {[%emt 0:00:02]} Rd2 {[%emt 0:00:02]} 52. Re1 {[%emt 0:00:03]} Rxb2 {[%emt 0:00:02] Droht stark ...Rc2.} 53. Bg1 {[%emt 0:00:03]} g5 {[%emt 0:00:02]} 54. Rc1 {[%emt 0:00:01]} Rd2 {[%emt 0:00:02] Und ...Ra2 würde nun gewinnen.} 55. Rb1 {[%emt 0:00:01]} Ke6 {[%emt 0:00:01]} 56. Rc1 {[%emt 0:00:01]} Kd7 {[%emt 0:00:01] Droht ...Kc7 und aus.} 57. Re1 {[%emt 0:00:01]} Rd3 {[%emt 0:00:01]} 58. Rc1 {[%emt 0:00:01]} Kc7 {[%emt 0:00:01] Zielt auf ...Kd6 ab.} 59. Rc2 {[%emt 0:00:02]} Bd7 {[%emt 0:00:00]} 60. Rb2 {[%emt 0:00:04]} Rxc3 {[%emt 0:00:02]} 61. g3 {[%emt 0:00:04]} hxg3 {[%emt 0:00:02] Gewichteter Fehlerwert: Weiß=0.74/Schwarz=0.21 (präzise) .  Verlustzug:     	Weiß=1     	---        Fehler:       	Weiß=4     	Schwarz=2     Ungenau:       	Weiß=3     	Schwarz=3     OK:         	Weiß=8     	Schwarz=13    Bester:       	---       	Schwarz=3     Stark:        	---       	Schwarz=1} 0-1

[Event "American Cup Blitz 2024"]
[Site "Saint Louis"]
[Date "2024.03.21"]
[Round "2.1"]
[White "Swiercz, Dariusz"]
[Black "Caruana, Fabiano"]
[Result "1/2-1/2"]
[ECO "B31"]
[WhiteElo "2612"]
[BlackElo "2804"]
[Annotator "TA"]
[PlyCount "125"]
[EventDate "2024.03.21"]
[EventType "swiss"]
[EventCountry "USA"]
[SourceTitle "playchess.com"]
[Source "ChessBase"]
[SourceQuality "1"]
[TimeControl "180+2"]

{[%evp 42,125,87,14,25,23,18,27,31,24,38,10,45,8,24,9,66,52,75,36,40,41,48,23,25,0,4,0,0,0,0,0,5,0,17,9,78,20,29,23,35,32,49,49,68,0,70,12,49,15,49,49,40,0,13,8,18,19,26,12,12,13,19,12,91,14,39,0,0,0,44,12,12,0,0,-5,-5,-5,-5,-5,0,0,0,0,0,0]} 1. e4 {[%emt 0:00:01]} c5 {[%emt 0:00:04]} 2. Nf3 {[%emt 0:00:03]} Nc6 {[%emt 0:00:00]} 3. Bb5 {[%emt 0:00:05]} g6 {[%emt 0:00:00]} 4. O-O {[%emt 0:00:02]} Bg7 {[%emt 0:00:01]} 5. Re1 {[%emt 0:00:06]} e5 {[%emt 0:00:02]} 6. Bxc6 {[%emt 0:00:01]} dxc6 {[%emt 0:00:01]} 7. d3 {[%emt 0:00:01]} Qe7 {[%emt 0:00:04]} 8. a3 {[%emt 0:00:02]} a5 {[%emt 0:00:05] B31: Sicilian: 2...Nc6 3 Bb5 g6.} 9. Nbd2 {[%emt 0:00:12]} Nf6 {[%emt 0:00:08]} 10. Nc4 {[%emt 0:00:01]} Nd7 {[%emt 0:00:02]} 11. Be3 $5 $146 {[%emt 0:00:28][%mdl 8] An interesting novelty.} ({Predecessor:} 11. a4 O-O 12. b3 b6 13. Ba3 Rd8 14. Qe2 Rb8 15. Rad1 Nf8 16. Qe3 Qc7 17. Bb2 f6 {1-0 Sadhwani,R (2609)-Gukesh,D (2621) Tata Steel India Blitz 2021 (8)}) 11... b5 {[%emt 0:00:04]} 12. Ncd2 {[%emt 0:00:01]} a4 {[%emt 0:00:07]} 13. c4 {[%emt 0:00:14]} O-O {[%emt 0:00:03]} 14. Qc2 {[%emt 0:00:04]} Ba6 {[%emt 0:00:18]} 15. Rec1 {[%emt 0:00:16]} Rfd8 {[%emt 0:00:01]} 16. b3 {[%emt 0:00:07]} bxc4 {[%emt 0:00:23]} 17. Nxc4 {[%emt 0:00:08]} Bb5 {[%emt 0:00:03]} 18. bxa4 {[%emt 0:00:08]} Bxa4 {[%emt 0:00:02]} 19. Qc3 {[%emt 0:00:03]} Bb5 {[%emt 0:00:03]} 20. Nb2 {[%emt 0:00:21]} h6 {[%emt 0:00:52]} 21. a4 {[%emt 0:00:01]} Ba6 {[%emt 0:00:00]} 22. Bxc5 {[%emt 0:00:22]} (22. a5 $16) 22... Nxc5 {[%emt 0:00:02]} 23. Qxc5 {[%emt 0:00:00]} Qxc5 {[%emt 0:00:12]} 24. Rxc5 {[%emt 0:00:01]} Bxd3 {[%emt 0:00:02]} 25. Nxd3 {[%emt 0:00:02]} (25. Rxc6 $2 {loses.} Bxe4 26. Rb6 Bf5 $19) 25... Rxd3 {[%emt 0:00:01]} 26. h3 {[%emt 0:00:13]} (26. Nxe5 Rxa4 27. Rf1 Bxe5 28. Rxe5 Kg7) (26. h4 $5) 26... Rd6 {[%emt 0:00:09]} 27. Kf1 {[%emt 0:00:27]} Re6 {[%emt 0:00:02]} 28. Ke2 {[%emt 0:00:02]} f5 {[%emt 0:00:17]} (28... Bf8 $11 29. Rc4 (29. Rxe5 Rf6 $17) 29... Ra6) 29. Rc4 {[%emt 0:00:04]} Bf8 {[%emt 0:00:11]} 30. Rac1 {[%emt 0:00:05]} c5 {[%emt 0:00:06]} 31. exf5 {[%emt 0:00:06]} gxf5 {[%emt 0:00:01]} 32. Nh4 Rf6 {[%emt 0:00:04]} 33. g4 {[%emt 0:00:02]} fxg4 $1 {[%emt 0:00:02]} 34. hxg4 {[%emt 0:00:00]} Rb6 {[%emt 0:00:04]} 35. Nf3 {[%emt 0:00:11]} Rb4 {[%emt 0:00:09]} 36. Nxe5 {[%emt 0:00:07]} Raxa4 {[%emt 0:00:02]} 37. f4 {[%emt 0:00:05]} Ra8 {[%emt 0:00:15]} 38. Kf3 {[%emt 0:00:01]} Kg7 {[%emt 0:00:05] [#]} (38... Bd6 $11) 39. Nd3 {[%emt 0:00:02]} (39. Rxb4 $1 $16 cxb4 40. Rc7+ Kg8 41. Rb7) 39... Rb3 {[%emt 0:00:01]} 40. R1c3 {[%emt 0:00:01]} Rxc3 {[%emt 0:00:02]} 41. Rxc3 {[%emt 0:00:01]} Rc8 {[%emt 0:00:05]} 42. Ne5 {[%emt 0:00:02]} Be7 {[%emt 0:00:03]} 43. Ke4 {[%emt 0:00:01]} ({Better is} 43. Rb3 $14) 43... Ra8 {[%emt 0:00:02]} (43... Bf6 $11) 44. Rc4 {[%emt 0:00:02]} ({White should play} 44. Rb3 $14) 44... Bd6 {[%emt 0:00:01]} 45. Nd3 {[%emt 0:00:02]} Rc8 {[%emt 0:00:02]} 46. Kd5 {[%emt 0:00:04]} Rd8 {[%emt 0:00:01]} 47. Ke4 {[%emt 0:00:01]} Rc8 {[%emt 0:00:03]} 48. Nf2 {[%emt 0:00:01]} Kf7 {[%emt 0:00:03]} 49. Kf5 {[%emt 0:00:06]} Bf8 {[%emt 0:00:01]} 50. Ne4 {[%emt 0:00:01]} Rc6 {[%emt 0:00:01]} 51. Ke5 {[%emt 0:00:03]} Rc7 {[%emt 0:00:04]} 52. f5 {[%emt 0:00:02]} Rc6 {[%emt 0:00:02]} (52... Re7+ $11 {remains equal.} 53. Kd5 Rd7+ 54. Ke5 Ra7) 53. Kd5 {[%emt 0:00:01]} ({White should try} 53. Ra4 $16 Bg7+ 54. Kd5) 53... Ra6 $11 {[%emt 0:00:03]} 54. Nxc5 {[%emt 0:00:03]} Ra5 55. Kd4 {[%emt 0:00:02]} Be7 {[%emt 0:00:03]} 56. Ne4 {[%emt 0:00:01]} h5 $1 {[%emt 0:00:02]} 57. f6 {[%emt 0:00:04]} Bxf6+ {[%emt 0:00:01]} 58. Nxf6 {[%emt 0:00:01]} Kxf6 {[%emt 0:00:01]} 59. gxh5 {[%emt 0:00:00]} Rxh5 {[%emt 0:00:02]} 60. Rc6+ {[%emt 0:00:01]} Kg5 {[%emt 0:00:01]} 61. Rc5+ {[%emt 0:00:01]} Kg4 {[%emt 0:00:01]} 62. Rxh5 {[%emt 0:00:00]} Kxh5 {[%emt 0:00:01]} 63. Ke4 {[%emt 0:00:02]} 1/2-1/2